fUSD/lending_fUSD_20250109
["ID","MTS","AMOUNT","RATE_DAILY","PERIOD"]
[348229078,1736405447223,-152.518603,0.00010542,2]
[348229080,1736405447233,-500.0,0.00010542,2]
[348229082,1736405447242,-500.0,0.00010542,2]
[348229084,1736405447252,-500.0,0.00010542,2]
[348229086,1736405447261,-500.0,0.00010542,2]
[348229088,1736405447271,-500.0,0.00010542,2]
[348229090,1736405447280,-500.0,0.00010542,2]
[348229092,1736405447290,-500.0,0.00010542,2]
[348229093,1736405447299,-500.0,0.00010542,2]
[348229095,1736405447308,-500.0,0.00010542,2]
[348229097,1736405447318,-500.0,0.00010542,2]
[348229099,1736405447327,-500.0,0.00010542,2]
[348229102,1736405447337,-500.0,0.00010542,2]
[348229104,1736405447347,-500.0,0.00010542,2]
[348229105,1736405447356,-500.0,0.00010542,2]
[348229107,1736405447366,-500.0,0.00010542,2]
[348229109,1736405447375,-500.0,0.00010542,2]
[348229112,1736405447385,-500.0,0.00010542,2]
[348229114,1736405447394,-500.0,0.00010542,2]
[348229116,1736405447403,-365.80999798,0.00010542,2]
[348229117,1736405447412,-500.0,0.00010542,2]
[348229119,1736405447421,-500.0,0.00010542,2]
[348229121,1736405447431,-495.938234,0.00010542,2]
[348229124,1736405447441,-500.0,0.00010542,2]
[348229125,1736405447450,-500.0,0.00010542,2]
[348229126,1736405447460,-500.0,0.00010542,2]
[348229127,1736405447469,-277.64197781,0.00010542,2]
[348229128,1736405447478,-500.0,0.00010542,2]
[348229129,1736405447487,-500.0,0.00010542,2]
[348229130,1736405447496,-500.0,0.00010542,2]
[348229131,1736405447505,-500.0,0.00010542,2]
[348229132,1736405447514,-500.0,0.00010542,2]
[348229133,1736405447523,-500.0,0.00010542,2]
[348229134,1736405447535,-500.0,0.00010542,2]
[348229136,1736405447545,-500.0,0.00010542,2]
[348229138,1736405447554,-500.0,0.00010542,2]
[348229140,1736405447563,-500.0,0.00010542,2]
[348229142,1736405447573,-500.0,0.00010542,2]
[348229144,1736405447582,-500.0,0.00010542,2]
[348229146,1736405447591,-500.0,0.00010542,2]
[348229148,1736405447599,-222.07280811,0.00010542,2]
[348229150,1736405447608,-500.0,0.00010542,2]
[348229152,1736405447618,-500.0,0.00010542,2]
[348229154,1736405447627,-1406.05,0.00010542,2]
[348229155,1736405447636,-500.0,0.00010542,2]
[348229157,1736405447646,-500.0,0.00010542,2]
[348229160,1736405447656,-571.34705496,0.00010542,2]
[348229162,1736405447665,-500.0,0.00010542,2]
[348229163,1736405447675,-255.26906167,0.00010542,2]
[348229166,1736405447685,-624.98,0.00010542,2]
[348229168,1736405447694,-500.0,0.00010542,2]
[348229169,1736405447703,-1734.0,0.00010542,2]
[348229171,1736405447712,-669.48,0.00010542,2]
[348229174,1736405447723,-1267.72,0.00010542,2]
[348229175,1736405447732,-811.83,0.00010542,2]
[348229178,1736405447742,-757.89,0.00010542,2]
[348229179,1736405447751,-1576.59,0.00010542,2]
[348229182,1736405447760,-1038.10045899,0.00010546,3]
[348229184,1736405447771,-500.0,0.00010547,2]
[348229186,1736405447780,-754.74,0.00010547,2]
[348229188,1736405447791,-1290.53,0.00010547,2]
[348229190,1736405447800,-578.1,0.00010547,2]
[348229192,1736405447809,-612.53,0.00010547,2]
[348229194,1736405447819,-992.22,0.00010547,2]
[348229196,1736405447829,-1322.04,0.00010547,2]
[348229198,1736405447838,-601.55,0.00010547,2]
[348229200,1736405447847,-543.29,0.00010547,2]
[348229202,1736405447856,-500.0,0.00010547,2]
[348229204,1736405447866,-365.0,0.000106,2]
[348229205,1736405447875,-4479.59195187,0.00010624,2]
[348229208,1736405447884,-176.0,0.00010635,2]
[348229209,1736405447894,-168.21,0.00010635,2]
[348229212,1736405447903,-597.0,0.0001066,2]
[348229213,1736405447912,-303.0,0.0001066,2]
[348229216,1736405447922,-500.0,0.00010684,2]
[348229217,1736405447931,-4793.36481256,0.0001069,2]
[348229220,1736405447940,-1005.0,0.000107,2]
[348229222,1736405447950,-4479.59195187,0.00010728,2]
[348229224,1736405447959,-25605.41410683,0.00010787,2]
[348229226,1736405447969,-1000.0,0.000108,2]
[348229228,1736405447978,-162.806,0.00010808,2]
[348229230,1736405447987,-150.0,0.00010808,2]
[348229231,1736405447997,-2015.0,0.00010808,2]
[348229234,1736405448006,-1284.249,0.00010808,2]
[348229236,1736405448016,-566.0,0.00010808,2]
[348229237,1736405448025,-635.0,0.00010808,2]
[348229240,1736405448035,-150.0,0.00010808,2]
[348229241,1736405448044,-1861.0,0.00010808,2]
[348229243,1736405448054,-1258.0,0.00010808,2]
[348229245,1736405448063,-821.0,0.00010808,2]
[348229247,1736405448073,-3777.0,0.00010808,2]
[348229250,1736405448082,-918.0,0.00010808,2]
[348229252,1736405448092,-537.0,0.00010808,2]
[348229254,1736405448103,-3977.0,0.00010808,2]
[348229255,1736405448112,-9622.0,0.00010808,2]
[348229258,1736405448121,-3895.0,0.00010808,2]
[348229259,1736405448131,-268.523,0.00010808,2]
[348229261,1736405448140,-1173.0,0.00010808,2]
[348229264,1736405448150,-157.582,0.00010808,2]
[348229266,1736405448159,-500.0,0.00010815,2]
[348229267,1736405448169,-500.0,0.00010815,2]
[348229269,1736405448178,-682.86,0.00010815,2]
[348229272,1736405448188,-500.0,0.00010815,2]
[348229273,1736405448198,-500.0,0.00010815,2]
[348229275,1736405448207,-522.31,0.00010815,2]
[348229277,1736405448216,-500.0,0.00010815,2]
[348229279,1736405448225,-1010.57,0.00010815,2]
[348229281,1736405448235,-500.0,0.00010815,2]
[348229283,1736405448244,-500.0,0.00010815,2]
[348229285,1736405448254,-500.0,0.00010815,2]
[348229287,1736405448263,-500.0,0.00010815,2]
[348229289,1736405448274,-500.0,0.00010815,2]
[348229291,1736405448283,-500.0,0.00010815,2]
[348229293,1736405448293,-500.0,0.00010815,2]
[348229295,1736405448302,-500.0,0.00010815,2]
[348229297,1736405448312,-500.0,0.00010815,2]
[348229299,1736405448321,-749.469039,0.00010815,2]
[348229301,1736405448330,-629.30867837,0.00010815,2]
[348229303,1736405448340,-500.0,0.00010815,2]
[348229306,1736405448350,-500.0,0.00010815,2]
[348229307,1736405448359,-1339.52,0.00010815,2]
[348229309,1736405448368,-500.0,0.00010815,2]
[348229311,1736405448378,-683.333522,0.00010815,2]
[348229314,1736405448387,-500.0,0.00010815,2]
[348229315,1736405448397,-500.0,0.00010815,2]
[348229318,1736405448406,-500.0,0.00010815,2]
[348229319,1736405448415,-500.0,0.00010815,2]
[348229322,1736405448425,-514.82941288,0.00010815,2]
[348229323,1736405448434,-500.0,0.00010815,2]
[348229325,1736405448444,-500.0,0.00010815,2]
[348229328,1736405448454,-882.62,0.00010815,2]
[348229330,1736405448464,-500.0,0.00010815,2]
[348229332,1736405448473,-324.92041479,0.00010815,2]
[348229334,1736405448483,-500.0,0.00010815,2]
[348229336,1736405448493,-500.0,0.00010815,2]
[348229338,1736405448502,-500.0,0.00010815,2]
[348229340,1736405448512,-500.0,0.00010815,2]
[348229342,1736405448523,-200.64460464,0.00010815,2]
[348229344,1736405448536,-500.0,0.00010815,2]
[348229346,1736405448546,-500.0,0.00010815,2]
[348229348,1736405448556,-903.58,0.00010815,2]
[348229350,1736405448565,-500.0,0.00010815,2]
[348229352,1736405448575,-1421.37,0.00010815,2]
[348229354,1736405448584,-500.0,0.00010815,2]
[348229356,1736405448593,-500.0,0.00010815,2]
[348229358,1736405448602,-500.0,0.00010815,2]
[348229360,1736405448613,-507.06746048,0.00010815,2]
[348229362,1736405448622,-500.0,0.00010815,2]
[348229364,1736405448631,-500.0,0.00010815,2]
[348229366,1736405448641,-500.0,0.00010815,2]
[348229368,1736405448650,-500.0,0.00010815,2]
[348229370,1736405448659,-500.0,0.00010815,2]
[348229372,1736405448668,-1125.84,0.00010815,2]
[348229374,1736405448677,-500.0,0.00010815,2]
[348229376,1736405448687,-500.0,0.00010815,2]
[348229378,1736405448697,-500.0,0.00010815,2]
[348229380,1736405448706,-2991.42,0.00010815,2]
[348229382,1736405448716,-500.0,0.00010815,2]
[348229384,1736405448725,-500.0,0.00010815,2]
[348229386,1736405448734,-500.0,0.00010815,2]
[348229388,1736405448743,-500.0,0.00010815,2]
[348229390,1736405448752,-500.0,0.00010815,2]
[348229392,1736405448761,-500.0,0.00010815,2]
[348229394,1736405448771,-500.0,0.00010815,2]
[348229396,1736405448780,-500.0,0.00010815,2]
[348229398,1736405448790,-500.0,0.00010815,2]
[348229400,1736405448799,-500.0,0.00010815,2]
[348229402,1736405448809,-599.79,0.00010815,2]
[348229404,1736405448818,-593.91740597,0.00010815,2]
[348229406,1736405448828,-317.95079969,0.00010815,2]
[348229408,1736405448837,-500.0,0.00010815,2]
[348229410,1736405448846,-500.0,0.00010815,2]
[348229412,1736405448856,-500.0,0.00010815,2]
[348229414,1736405448865,-500.0,0.00010815,2]
[348229416,1736405448874,-500.0,0.00010815,2]
[348229418,1736405448883,-500.0,0.00010815,2]
[348229420,1736405448892,-500.0,0.00010815,2]
[348229422,1736405448902,-500.0,0.00010815,2]
[348229424,1736405448911,-500.0,0.00010815,2]
[348229426,1736405448920,-500.0,0.00010815,2]
[348229428,1736405448930,-723.06,0.00010815,2]
[348229430,1736405448939,-500.0,0.00010815,2]
[348229432,1736405448948,-500.0,0.00010815,2]
[348229434,1736405448957,-500.0,0.00010815,2]
[348229436,1736405448966,-894.33,0.00010815,2]
[348229438,1736405448975,-500.0,0.00010815,2]
[348229440,1736405448985,-385.17589502,0.00010815,2]
[348229442,1736405448994,-500.0,0.00010815,2]
[348229444,1736405449003,-500.0,0.00010815,2]
[348229446,1736405449012,-843.34,0.00010815,2]
[348229448,1736405449022,-500.0,0.00010815,2]
[348229450,1736405449032,-3007.9,0.00010815,2]
[348229452,1736405449041,-500.0,0.00010815,2]
[348229454,1736405449050,-500.0,0.00010815,2]
[348229456,1736405449060,-500.0,0.00010815,2]
[348229458,1736405449069,-567.64727154,0.00010815,2]
[348229460,1736405449078,-500.0,0.00010815,2]
[348229462,1736405449088,-500.0,0.00010815,2]
[348229464,1736405449096,-1064.22,0.00010815,2]
[348229466,1736405449105,-1512.81,0.00010815,2]
[348229468,1736405449114,-607.29,0.00010815,2]
[348229470,1736405449123,-500.0,0.00010815,2]
[348229471,1736405449134,-511.76447251,0.00010815,2]
[348229474,1736405449143,-551.28,0.00010815,2]
[348229475,1736405449152,-604.73,0.00010815,2]
[348229478,1736405449162,-500.0,0.00010815,2]
[348229479,1736405449171,-169.52751205,0.00010815,2]
[348229482,1736405449180,-500.0,0.00010815,2]
[348229483,1736405449190,-493.66447161,0.00010815,2]
[348229485,1736405449199,-809.42,0.00010815,2]
[348229487,1736405449208,-500.0,0.00010815,2]
[348229490,1736405449218,-500.0,0.00010815,2]
[348229492,1736405449227,-500.0,0.00010815,2]
[348229494,1736405449237,-1464.42,0.00010815,2]
[348229495,1736405449246,-500.0,0.00010815,2]
[348229498,1736405449256,-1362.68,0.00010815,2]
[348229500,1736405449266,-1152.04,0.00010815,2]
[348229502,1736405449275,-514.4559086,0.00010815,2]
[348229503,1736405449284,-500.0,0.00010815,2]
[348229506,1736405449294,-500.0,0.00010815,2]
[348229508,1736405449303,-500.0,0.00010815,2]
[348229509,1736405449313,-500.0,0.00010815,2]
[348229511,1736405449322,-500.0,0.00010815,2]
[348229513,1736405449331,-500.0,0.00010815,2]
[348229515,1736405449340,-500.0,0.00010815,2]
[348229517,1736405449349,-500.0,0.00010815,2]
[348229519,1736405449359,-786.45,0.00010815,2]
[348229521,1736405449369,-2052.45,0.00010815,2]
[348229523,1736405449378,-500.0,0.00010815,2]
[348229525,1736405449387,-500.0,0.00010815,2]
[348229527,1736405449396,-500.0,0.00010815,2]
[348229529,1736405449406,-500.0,0.00010815,2]
[348229531,1736405449415,-204.82068201,0.00010815,2]
[348229533,1736405449424,-500.0,0.00010815,2]
[348229535,1736405449434,-500.0,0.00010815,2]
[348229537,1736405449443,-500.0,0.00010815,2]
[348229539,1736405449453,-667.94,0.00010815,2]
[348229541,1736405449462,-500.0,0.00010815,2]
[348229543,1736405449472,-500.0,0.00010815,2]
[348229545,1736405449480,-500.0,0.00010815,2]
[348229547,1736405449489,-500.0,0.00010815,2]
[348229549,1736405449499,-500.0,0.00010815,2]
[348229551,1736405449509,-500.0,0.00010815,2]
[348229553,1736405449519,-500.0,0.00010815,2]
[348229555,1736405449530,-500.0,0.00010815,2]
[348229557,1736405449540,-500.0,0.00010815,2]
[348229560,1736405449550,-924.9,0.00010815,2]
[348229562,1736405449559,-587.75230671,0.00010815,2]
[348229564,1736405449569,-500.0,0.00010815,2]
[348229566,1736405449578,-1149.08,0.00010815,2]
[348229568,1736405449587,-500.0,0.00010815,2]
[348229570,1736405449596,-500.0,0.00010815,2]
[348229572,1736405449606,-654.67,0.00010815,2]
[348229574,1736405449615,-500.0,0.00010815,2]
[348229575,1736405449624,-753.42,0.00010815,2]
[348229577,1736405449633,-500.0,0.00010815,2]
[348229580,1736405449643,-500.0,0.00010815,2]
[348229582,1736405449652,-500.0,0.00010815,2]
[348229584,1736405449661,-500.0,0.00010815,2]
[348229585,1736405449671,-500.0,0.00010815,2]
[348229586,1736405449679,-500.0,0.00010815,2]
[348229587,1736405449689,-500.0,0.00010815,2]
[348229588,1736405449697,-500.0,0.00010815,2]
[348229589,1736405449707,-500.0,0.00010815,2]
[348229590,1736405449715,-606.66493066,0.00010815,2]
[348229591,1736405449724,-1570.8,0.00010815,2]
[348229592,1736405449733,-500.0,0.00010815,2]
[348229593,1736405449742,-500.0,0.00010815,2]
[348229595,1736405449751,-1183.75,0.00010815,2]
[348229597,1736405449764,-500.0,0.00010815,2]
[348229599,1736405449773,-500.0,0.00010815,2]
[348229601,1736405449782,-500.0,0.00010815,2]
[348229603,1736405449791,-672.42,0.00010815,2]
[348229605,1736405449800,-500.0,0.00010815,2]
[348229607,1736405449809,-500.0,0.00010815,2]
[348229609,1736405449818,-500.0,0.00010815,2]
[348229611,1736405449827,-500.0,0.00010815,2]
[348229613,1736405449836,-500.0,0.00010815,2]
[348229615,1736405449846,-500.0,0.00010815,2]
[348229617,1736405449855,-500.0,0.00010815,2]
[348229619,1736405449864,-511.56,0.00010815,2]
[348229621,1736405449873,-500.0,0.00010815,2]
[348229623,1736405449882,-773.16,0.00010815,2]
[348229625,1736405449891,-1000.0,0.00010815,2]
[348229627,1736405449900,-596.7,0.00010815,2]
[348229629,1736405449909,-500.0,0.00010815,2]
[348229630,1736405449919,-621.11307273,0.00010815,2]
[348229632,1736405449927,-500.0,0.00010815,2]
[348229634,1736405449936,-500.0,0.00010815,2]
[348229636,1736405449946,-500.0,0.00010815,2]
[348229638,1736405449955,-861.19,0.00010815,2]
[348229657,1736405450116,-500.0,0.00010815,2]
[348229659,1736405450125,-500.0,0.00010815,2]
[348229661,1736405450134,-500.0,0.00010815,2]
[348229663,1736405450144,-500.0,0.00010816,2]
[348229665,1736405450153,-500.0,0.00010816,2]
[348229667,1736405450162,-500.0,0.00010816,2]
[348229669,1736405450171,-500.0,0.00010816,2]
[348229670,1736405450180,-622.77877006,0.00010816,2]
[348229673,1736405450189,-500.0,0.00010816,2]
[348229675,1736405450198,-500.0,0.00010816,2]
[348229676,1736405450208,-500.0,0.00010816,2]
[348229678,1736405450218,-500.0,0.00010816,2]
[348229680,1736405450227,-500.0,0.00010816,2]
[348229682,1736405450237,-500.0,0.00010816,2]
[348229685,1736405450246,-500.0,0.00010816,2]
[348229687,1736405450255,-500.0,0.00010816,2]
[348229689,1736405450266,-545.56469862,0.00010816,2]
[348229691,1736405450276,-500.0,0.00010816,2]
[348229693,1736405450285,-500.0,0.00010816,2]
[348229695,1736405450294,-500.0,0.00010816,2]
[348229697,1736405450303,-500.0,0.00010816,2]
[348229699,1736405450312,-527.39,0.00010816,2]
[348229701,1736405450321,-500.0,0.00010816,2]
[348229703,1736405450330,-500.0,0.00010816,2]
[348229704,1736405450339,-500.0,0.00010816,2]
[348229706,1736405450348,-500.0,0.00010816,2]
[348229708,1736405450357,-500.0,0.00010816,2]
[348229710,1736405450366,-500.0,0.00010816,2]
[348229713,1736405450376,-500.0,0.00010816,2]
[348229714,1736405450385,-500.0,0.00010816,2]
[348229716,1736405450395,-158.68009884,0.00010816,2]
[348229719,1736405450404,-500.0,0.00010816,2]
[348229720,1736405450413,-500.0,0.00010816,2]
[348229722,1736405450422,-500.0,0.00010816,2]
[348229724,1736405450431,-500.0,0.00010816,2]
[348229726,1736405450440,-500.0,0.00010816,2]
[348229728,1736405450450,-500.0,0.00010816,2]
[348229730,1736405450459,-500.0,0.00010816,2]
[348229732,1736405450468,-500.0,0.00010816,2]
[348229735,1736405450477,-500.0,0.00010816,2]
[348229736,1736405450486,-500.0,0.00010816,2]
[348229738,1736405450495,-500.0,0.00010816,2]
[348229740,1736405450504,-500.0,0.00010816,2]
[348229741,1736405450513,-500.0,0.00010816,2]
[348229742,1736405450522,-500.0,0.00010816,2]
[348229743,1736405450535,-500.0,0.00010816,2]
[348229744,1736405450546,-500.0,0.00010816,2]
[348229745,1736405450555,-464.39536385,0.00010816,2]
[348229746,1736405450564,-500.0,0.00010816,2]
[348229747,1736405450574,-490.86914566,0.00010816,2]
[348229749,1736405450583,-500.0,0.00010816,2]
[348229751,1736405450592,-500.0,0.00010816,2]
[348229753,1736405450601,-297.48326627,0.00010816,2]
[348229755,1736405450611,-500.0,0.00010816,2]
[348229757,1736405450619,-500.0,0.00010816,2]
[348229759,1736405450629,-500.0,0.00010816,2]
[348229761,1736405450638,-500.0,0.00010816,2]
[348229762,1736405450647,-500.0,0.00010816,2]
[348229763,1736405450656,-386.25462834,0.00010816,2]
[348229764,1736405450665,-500.0,0.00010816,2]
[348229765,1736405450674,-500.0,0.00010816,2]
[348229766,1736405450683,-500.0,0.00010816,2]
[348229767,1736405450692,-500.0,0.00010816,2]
[348229768,1736405450702,-1406.05,0.00010816,2]
[348229769,1736405450712,-500.0,0.00010816,2]
[348229770,1736405450721,-500.0,0.00010816,2]
[348229771,1736405450731,-500.0,0.00010816,2]
[348229772,1736405450740,-624.98,0.00010816,2]
[348229773,1736405450749,-500.0,0.00010816,2]
[348229774,1736405450758,-1734.0,0.00010816,2]
[348229775,1736405450767,-669.48,0.00010816,2]
[348229776,1736405450777,-1267.72,0.00010816,2]
[348229777,1736405450785,-790.84,0.00010816,2]
[348229778,1736405450795,-811.83,0.00010816,2]
[348229779,1736405450804,-757.89,0.00010816,2]
[348229780,1736405450813,-1576.59,0.00010816,2]
[348229781,1736405450823,-170.49861164,0.0001082,2]
[348229782,1736405450832,-500.0,0.00010821,2]
[348229783,1736405450843,-754.74,0.00010821,2]
[348229784,1736405450852,-1290.53,0.00010821,2]
[348229785,1736405450861,-578.1,0.00010821,2]
[348229786,1736405450870,-612.53,0.00010821,2]
[348229787,1736405450879,-992.22,0.00010821,2]
[348229788,1736405450888,-1322.04,0.00010821,2]
[348229789,1736405450898,-601.55,0.00010821,2]
[348229790,1736405450907,-543.29,0.00010821,2]
[348229791,1736405450916,-500.0,0.00010821,2]
[348229792,1736405450926,-171.92160056,0.00010828,2]
[348229793,1736405450937,-4479.59195187,0.00010831,2]
[348229794,1736405450947,-4422.26317211,0.00010859,2]
[348229795,1736405450959,-30000.0,0.0001088,2]
[348229796,1736405450968,-1000.0,0.00010899,2]
[348229797,1736405450977,-1000.0,0.000109,2]
[348229798,1736405450986,-164.9698038,0.000109,2]
[348229799,1736405450995,-4479.59195187,0.00010934,2]
[348229800,1736405451005,-400.52025323,0.00010942,2]
[348229801,1736405451015,-150.85705604,0.00010958,2]
[348229802,1736405451025,-500.0,0.00010958,2]
[348229803,1736405451035,-7500.0,0.00010958,2]
[348229804,1736405451044,-717.13436016,0.00010958,2]
[348229805,1736405451055,-999.0,0.00010958,2]
[348229806,1736405451064,-500.0,0.00010959,2]
[348229807,1736405451074,-2000.0,0.00010959,2]
[348229808,1736405451083,-500.0,0.00010959,2]
[348229809,1736405451092,-200.0,0.00010959,2]
[348229810,1736405451102,-2728.12,0.00010959,2]
[348229811,1736405451112,-150.0,0.00010959,2]
[348229812,1736405451121,-500.0,0.00010986,2]
[348229813,1736405451130,-400.52025323,0.00010995,2]
[348229814,1736405451139,-668.28307948,0.00010999,2]
[348229815,1736405451149,-23155.97685335,0.00011,2]
[348229816,1736405451158,-5321.11412755,0.00011,2]
[348229817,1736405451168,-94451.36771805,0.00011,2]
[348229818,1736405451177,-29489.35760539,0.00011,2]
[348229819,1736405451187,-1303.05749728,0.00011,2]
[348229820,1736405451196,-16739.75270703,0.00011,2]
[348229821,1736405451205,-152.01993,0.00011,2]
[348229822,1736405451215,-178.330156,0.00011,2]
[348229823,1736405451225,-178.330156,0.00011,2]
[348229824,1736405451234,-550.0,0.00011,2]
[348229825,1736405451246,-1000.0,0.00011,2]
[348229826,1736405451255,-4479.59195187,0.00011038,2]
[348229827,1736405451265,-192.411313,0.0001105,2]
[348229828,1736405451275,-500.0,0.00011089,2]
[348229829,1736405451284,-500.0,0.00011089,2]
[348229830,1736405451294,-682.86,0.00011089,2]
[348229831,1736405451303,-500.0,0.00011089,2]
[348229832,1736405451312,-500.0,0.00011089,2]
[348229833,1736405451321,-522.31,0.00011089,2]
[348229834,1736405451331,-500.0,0.00011089,2]
[348229835,1736405451340,-1010.57,0.00011089,2]
[348229836,1736405451350,-500.0,0.00011089,2]
[348229837,1736405451361,-500.0,0.00011089,2]
[348229838,1736405451370,-500.0,0.00011089,2]
[348229839,1736405451379,-500.0,0.00011089,2]
[348229840,1736405451388,-500.0,0.00011089,2]
[348229841,1736405451398,-500.0,0.00011089,2]
[348229842,1736405451408,-289.94204034,0.00011089,2]
[348229843,1736405451417,-500.0,0.00011089,2]
[348229844,1736405451426,-500.0,0.00011089,2]
[348229845,1736405451435,-749.469039,0.00011089,2]
[348229846,1736405451444,-500.0,0.00011089,2]
[348229847,1736405451453,-500.0,0.00011089,2]
[348229848,1736405451463,-1339.52,0.00011089,2]
[348229849,1736405451471,-683.333522,0.00011089,2]
[348229850,1736405451481,-500.0,0.00011089,2]
[348229851,1736405451489,-500.0,0.00011089,2]
[348229852,1736405451498,-352.66,0.00011089,2]
[348229853,1736405451507,-500.0,0.00011089,2]
[348229854,1736405451517,-500.0,0.00011089,2]
[348229855,1736405451526,-500.0,0.00011089,2]
[348229856,1736405451538,-500.0,0.00011089,2]
[348229857,1736405451547,-882.62,0.00011089,2]
[348229858,1736405451557,-500.0,0.00011089,2]
[348229859,1736405451566,-500.0,0.00011089,2]
[348229860,1736405451576,-500.0,0.00011089,2]
[348229861,1736405451585,-500.0,0.00011089,2]
[348229862,1736405451594,-500.0,0.00011089,2]
[348229863,1736405451603,-500.0,0.00011089,2]
[348229864,1736405451612,-500.0,0.00011089,2]
[348229865,1736405451622,-903.58,0.00011089,2]
[348229866,1736405451631,-1421.37,0.00011089,2]
[348229867,1736405451640,-500.0,0.00011089,2]
[348229868,1736405451649,-280.97462589,0.00011089,2]
[348229869,1736405451658,-500.0,0.00011089,2]
[348229870,1736405451667,-500.0,0.00011089,2]
[348229871,1736405451676,-500.0,0.00011089,2]
[348229872,1736405451685,-1125.84,0.00011089,2]
[348229873,1736405451695,-500.0,0.00011089,2]
[348229874,1736405451705,-500.0,0.00011089,2]
[348229875,1736405451717,-559.19,0.00011089,2]
[348229876,1736405451726,-2991.42,0.00011089,2]
[348229877,1736405451735,-500.0,0.00011089,2]
[348229878,1736405451745,-500.0,0.00011089,2]
[348229879,1736405451757,-500.0,0.00011089,2]
[348229880,1736405451767,-500.0,0.00011089,2]
[348229881,1736405451776,-500.0,0.00011089,2]
[348229882,1736405451785,-500.0,0.00011089,2]
[348229883,1736405451795,-500.0,0.00011089,2]
[348229884,1736405451804,-500.0,0.00011089,2]
[348229885,1736405451813,-500.0,0.00011089,2]
[348229886,1736405451822,-500.0,0.00011089,2]
[348229887,1736405451831,-599.79,0.00011089,2]
[348229888,1736405451841,-500.0,0.00011089,2]
[348229889,1736405451851,-500.0,0.00011089,2]
[348229890,1736405451861,-150.42056811,0.00011089,2]
[348229891,1736405451871,-500.0,0.00011089,2]
[348229892,1736405451880,-500.0,0.00011089,2]
[348229893,1736405451890,-599.49513529,0.00011089,2]
[348229894,1736405451900,-500.0,0.00011089,2]
[348229895,1736405451907,-500.0,0.00011089,2]
[348229896,1736405451914,-500.0,0.00011089,2]
[348229897,1736405451921,-500.0,0.00011089,2]
[348229898,1736405451928,-723.06,0.00011089,2]
[348229899,1736405451935,-500.0,0.00011089,2]
[348229900,1736405451942,-500.0,0.00011089,2]
[348229901,1736405451948,-500.0,0.00011089,2]
[348229902,1736405451956,-894.33,0.00011089,2]
[348229903,1736405451962,-500.0,0.00011089,2]
[348229904,1736405451969,-500.0,0.00011089,2]
[348229905,1736405451975,-500.0,0.00011089,2]
[348229906,1736405451981,-843.34,0.00011089,2]
[348229907,1736405451988,-500.0,0.00011089,2]
[348229908,1736405451996,-3007.9,0.00011089,2]
[348229909,1736405452002,-500.0,0.00011089,2]
[348229910,1736405452011,-500.0,0.00011089,2]
[348229911,1736405452018,-500.0,0.00011089,2]
[348229912,1736405452025,-500.0,0.00011089,2]
[348229913,1736405452031,-500.0,0.00011089,2]